fUSD/lending_fUSD_20250523
["ID","MTS","AMOUNT","RATE_DAILY","PERIOD"]
[362114721,1748002298684,-459.6432317,0.000299,2]
[362114722,1748002298693,-459.6432317,0.000299,2]
[362114723,1748002298702,-459.6432317,0.000299,2]
[362114724,1748002298711,-459.6432317,0.000299,2]
[362114725,1748002298721,-459.6432317,0.000299,2]
[362114726,1748002298730,-459.6432317,0.000299,2]
[362114727,1748002298739,-459.6432317,0.000299,2]
[362114728,1748002298749,-459.6432317,0.000299,2]
[362114729,1748002298762,-459.6432317,0.000299,2]
[362114730,1748002298771,-500.0,0.00029912,2]
[362114731,1748002298780,-100000.0,0.00029913,5]
[362114732,1748002298790,-625.0,0.00029945,2]
[362114733,1748002298799,-1229.3099893,0.00029979,2]
[362114734,1748002298809,-1141.5565706,0.00029979,2]
[362114735,1748002298818,-126728.7513113,0.00029979,2]
[362114736,1748002298827,-51502.79093132,0.00029979,2]
[362114737,1748002299006,-430.10219838,0.00029979,2]
[362114738,1748002299021,-65749.4164531,0.00029979,2]
[362114739,1748002299030,-10139.0826306,0.00029979,2]
[362114740,1748002299040,-9415.3114323,0.00029979,2]
[362114741,1748002299049,-4155.3011466,0.00029979,2]
[362114742,1748002299059,-3858.6779313,0.00029979,2]
[362114743,1748002299068,-2000.0,0.00029986,2]
[362114744,1748002299077,-2000.0,0.00029986,2]
[362114745,1748002299086,-3184.06332213,0.0002999,3]
[362114746,1748002299096,-500.0,0.00029998,2]
[362114747,1748002299105,-196.89780133,0.00029999,2]
[362114748,1748002299115,-699.81,0.00029999,4]
[362114749,1748002299124,-934.23,0.00029999,4]
[362114750,1748002299134,-765.64,0.00029999,4]
[362114751,1748002299143,-1213.63,0.00029999,4]
[362114752,1748002299153,-2301.13,0.00029999,4]
[362114753,1748002299162,-2104.51,0.00029999,4]
[362114754,1748002299172,-1056.15,0.00029999,4]
[362114755,1748002299181,-1235.93,0.00029999,4]
[362114756,1748002299190,-820.55,0.00029999,4]
[362114757,1748002299199,-2942.65,0.00029999,4]
[362114758,1748002299208,-3091.64,0.00029999,4]
[362114759,1748002299217,-824.71,0.00029999,4]
[362114760,1748002299227,-885.95906701,0.00029999,2]
[362114761,1748002299238,-257.73093299,0.00029999,2]
[362114762,1748002299248,-99.38906701,0.00029999,4]
[362114763,1748002299274,-420.0,0.00027534,4]
[362114764,1748002299286,-490.16093299,0.00029999,4]
[362114765,1748002299296,-930.62,0.00029999,4]
[362114766,1748002299307,-1759.35,0.00029999,4]
[362114767,1748002299317,-218.40499441,0.00029999,4]
[362114768,1748002299329,-494.39,0.00029999,4]
[362114769,1748002299339,-737.93,0.00029999,4]
[362114770,1748002299349,-2941.71,0.00029999,4]
[362114771,1748002299360,-420.0,0.00029999,4]
[362114772,1748002299370,-719.56,0.00029999,4]
[362114773,1748002299380,-586.0,0.00029999,4]
[362114774,1748002299390,-1548.3,0.00029999,2]
[362114775,1748002299400,-7122.89,0.00029999,4]
[362114776,1748002299409,-420.0,0.00029999,4]
[362114777,1748002299419,-1068.14,0.00029999,4]
[362114778,1748002299428,-187.40443831,0.00029999,4]
[362114779,1748002299437,-636.93,0.00029999,4]
[362114780,1748002299447,-1034.39,0.00029999,4]
[362114781,1748002299457,-745.56,0.00029999,4]
[362114782,1748002299466,-228.16712766,0.0003,5]
[362114783,1748002299476,-42245.9010976,0.0003,120]
[362114784,1748002299485,-393.84,0.0003,7]
[362114785,1748002299494,-5159.19,0.0003,6]
[362114786,1748002299504,-33.46140904,0.0003,120]
[362114787,1748002299521,-266.53859096,0.0003,120]
[362114788,1748002299531,-514.0,0.0003,30]
[362114789,1748002299540,-159.0959756,0.0003,5]
[362114790,1748002299550,-1202.21960287,0.0003,2]
[362114791,1748002299560,-266.78964285,0.0003,30]
[362114792,1748002299570,-232591.35612956,0.0003,2]
[362114793,1748002299582,-682.66826315,0.0003,2]
[362114794,1748002299594,-10320.0,0.0003,2]
[362114795,1748002299605,-8747.82829427,0.0003,2]
[362114796,1748002299629,-420.0,0.00027397,4]
[362114797,1748002299639,-151.0,0.00027397,7]
[362114798,1748002299648,-1998.46822874,0.0003,2]
[362114799,1748002299777,-151.0,0.00027397,7]
[362114800,1748002299787,-420.0,0.00027397,4]
[362114801,1748002299798,-308.2234654,0.00027534,4]
[362114802,1748002299812,-111.7765346,0.00027534,4]
[362114803,1748002299822,-151.0,0.00027534,7]
[362114804,1748002299831,-420.0,0.00027671,4]
[362114805,1748002299841,-420.0,0.00027671,4]
[362114806,1748002299852,-420.0,0.00027808,4]
[362114807,1748002299862,-420.0,0.00027808,4]
[362114808,1748002299872,-518.92,0.00027945,4]
[362114809,1748002299883,-805.83,0.00029178,2]
[362114810,1748002299892,-105717.99634605,0.0003,2]
[362114811,1748002299904,-372.0,0.0003,2]
[362114812,1748002299915,-40822.34890773,0.0003,2]
[362114813,1748002300070,-255.42984,0.00027397,4]
[362114814,1748002300089,-164.57016,0.00027397,4]
[362114815,1748002300098,-420.0,0.00027397,4]
[362114816,1748002300108,-420.0,0.00027397,4]
[362114817,1748002300118,-151.0,0.00027397,7]
[362114818,1748002300128,-420.0,0.00027397,4]
[362114819,1748002300138,-151.0,0.00027397,7]
[362114820,1748002300147,-151.0,0.00027397,7]
[362114821,1748002300157,-151.0,0.00027397,7]
[362114822,1748002300166,-522.12,0.00027534,4]
[362114823,1748002300176,-171.73,0.00027534,4]
[362114824,1748002300186,-151.0,0.00027534,7]
[362114825,1748002300196,-420.0,0.00027534,4]
[362114826,1748002300206,-151.0,0.00027534,7]
[362114827,1748002300216,-420.0,0.00027534,4]
[362114828,1748002300225,-151.0,0.00027553,7]
[362114829,1748002300235,-151.0,0.00027553,7]
[362114830,1748002300245,-407.34,0.00027671,4]
[362114831,1748002300255,-150.0,0.00027764,2]
[362114832,1748002300268,-150.0,0.00027799,2]
[362114833,1748002300278,-150.0,0.00027863,2]
[362114834,1748002300288,-420.0,0.00027945,4]
[362114835,1748002300299,-420.0,0.00028082,4]
[362114836,1748002300309,-420.0,0.00028219,4]
[362114837,1748002300320,-526.35,0.00028356,4]
[362114838,1748002300329,-49808.23406519,0.0003,2]
[362114839,1748002300342,-5928.69883132,0.0003,2]
[362114840,1748002300354,-4399.0,0.0003,2]
[362114841,1748002300365,-389.42,0.0003,2]
[362114842,1748002300378,-2939.992365,0.0003,2]
[362114843,1748002300391,-356.28,0.0003,2]
[362114844,1748002300426,-150.0,0.00027713,2]
[362114845,1748002300436,-150.0,0.00027808,2]
[362114846,1748002300447,-150.0,0.0002781,2]
[362114847,1748002300457,-1000.0,0.00027985,2]
[362114848,1748002300467,-1835.42648536,0.0003,2]
[362114849,1748002300492,-293.278,0.00027671,7]
[362114850,1748002300502,-150.0,0.00027895,2]
[362114851,1748002300515,-21.33354296,0.00028029,2]
[362114852,1748002300527,-358.45749936,0.00028029,2]
[362114853,1748002300561,-150.0,0.00027724,2]
[362114854,1748002300571,-150.0,0.00027781,2]
[362114855,1748002300580,-150.0,0.00027799,2]
[362114856,1748002300590,-150.0,0.00027802,2]
[362114857,1748002300600,-1000.0,0.00027867,2]
[362114858,1748002300610,-620.20895768,0.00028029,2]
[362114859,1748002300619,-49195.89405635,0.0003,2]
[362114860,1748002300702,-420.0,0.00027397,4]
[362114861,1748002300713,-420.0,0.00027397,4]
[362114862,1748002300723,-151.0,0.00027534,7]
[362114863,1748002300734,-3294.5691701,0.00027553,2]
[362114864,1748002300744,-1000.0,0.00027771,2]
[362114865,1748002300754,-150.0,0.00027776,2]
[362114866,1748002300773,-150.0,0.00027789,2]
[362114867,1748002300783,-150.0,0.00027791,2]
[362114868,1748002300793,-150.0,0.00027809,2]
[362114869,1748002300804,-150.0,0.00027812,2]
[362114870,1748002300814,-1000.0,0.00027816,2]
[362114871,1748002300824,-150.0,0.00027883,2]
[362114872,1748002300835,-150.0,0.00027889,2]
[362114873,1748002300846,-1000.0,0.00027934,2]
[362114874,1748002300856,-1000.0,0.00027942,2]
[362114875,1748002300867,-150.0,0.00027971,2]
[362114876,1748002300877,-1000.0,0.0002803,2]
[362114877,1748002300887,-10878.1672234,0.0003,2]
[362114878,1748002300930,-150.0,0.00027733,2]
[362114879,1748002300940,-1000.0,0.00027769,2]
[362114880,1748002300950,-150.0,0.00027786,2]
[362114881,1748002300960,-1000.0,0.00027988,2]
[362114882,1748002300970,-885.81943668,0.0003,2]
[362114883,1748002300984,-2659.68574416,0.0003,2]
[362114884,1748002300998,-2508.67598352,0.0003,2]
[362114885,1748002301024,-150.0,0.00027728,2]
[362114886,1748002301034,-150.0,0.00027912,2]
[362114887,1748002301044,-1000.0,0.0002801,2]
[362114888,1748002301053,-3841.36694597,0.0003,2]
[362114889,1748002303533,4352.84816539,0.000236,5]
[362114892,1748002593655,244.41,0.00026042,120]
[362114894,1748002885006,250.0,0.00015,2]
[362114895,1748002886126,300.0,0.00017,2]
[362114897,1748003106871,155.04,0.00013699,2]
[362114899,1748003235138,-350.0,0.00019,2]
[362114900,1748003235159,-172.38703256,0.000199,2]
[362114901,1748003235183,-1393.519651,0.000199,2]
[362114902,1748003240110,-1838.03152256,0.000199,2]
[362114904,1748003354091,-300.0,0.00019899,2]
[362114905,1748003354113,-2432.54187002,0.000199,2]
[362114906,1748003354138,-8093.80985858,0.000199,2]
[362114907,1748003354160,-900.0,0.000199,7]
[362114908,1748003354183,-236.30207228,0.000199,2]
[362114909,1748003354203,-151.0,0.00019925,2]
[362114910,1748003354228,-151.0,0.00019963,2]
[362114911,1748003354248,-151.0,0.00019963,2]
[362114912,1748003354268,-500.0,0.00019973,2]
[362114913,1748003354288,-500.0,0.00019973,2]
[362114914,1748003354308,-500.0,0.00019973,2]
[362114915,1748003354331,-500.0,0.00019973,2]
[362114916,1748003354350,-500.0,0.00019973,2]
[362114917,1748003354369,-41779.40675894,0.0001999,2]
[362114918,1748003354390,-300.0,0.00019999,2]
[362114919,1748003354411,-173.86776368,0.00019999,2]
[362114920,1748003354430,-237.85903978,0.00019999,2]
[362114921,1748003354450,-395.52386585,0.00019999,2]
[362114922,1748003354470,-494.100005,0.00019999,2]
[362114923,1748003354494,-500.0,0.00019999,2]
[362114924,1748003354518,-644.59180817,0.00019999,2]
[362114925,1748003354541,-500.0,0.00019999,2]
[362114926,1748003354564,-500.0,0.00019999,2]
[362114927,1748003354589,-500.0,0.00019999,2]
[362114928,1748003354612,-500.0,0.00019999,2]
[362114929,1748003354633,-49609.2551577,0.0002,2]
[362114930,1748003356104,-151.0,0.00019904,2]
[362114931,1748003356127,-500.0,0.00019973,2]
[362114932,1748003356147,-500.0,0.00019973,2]
[362114933,1748003356169,-58550.9577,0.0002,2]
[362114934,1748003358968,2433.0,0.000273,120]
[362114945,1748003431766,-268.52779771,0.000198,2]
[362114946,1748003431776,-197.96847173,0.000199,2]
[362114947,1748003431786,-151.0,0.00019979,2]
[362114948,1748003431795,-10181.50373056,0.0002,2]
[362114949,1748003431824,-21602.0,0.0002,2]
[362114950,1748003431835,-962.8861052,0.0002,2]
[362114951,1748003431887,-2150.0,0.0002,2]
[362114952,1748003432002,-346.26437897,0.0002,2]
[362114953,1748003432015,-6476.41995,0.0002,2]
[362114954,1748003432114,-414.64857287,0.0002,2]
[362114956,1748003432127,-37625.0,0.0002,2]
[362114972,1748003437599,-174.33211029,0.000199,2]
[362114974,1748003437609,-300.0,0.00019999,2]
[362114975,1748003437618,-64286.66777781,0.0002,2]
[362114976,1748003437674,-349619.9339151,0.0002,2]
[362114977,1748003437685,-216243.24,0.0002,2]
[362114978,1748003437728,-2267.55393,0.0002,2]
[362114979,1748003437739,-1539.23904204,0.0002,2]
[362114980,1748003437750,-18907.7,0.0002,2]
[362114981,1748003437789,-5080.0,0.0002,2]
[362114982,1748003437800,-1555.48249381,0.0002,2]
[362114983,1748003437850,-32445.0,0.0002,2]
[362114984,1748003438131,-506.0,0.0002,2]
[362114985,1748003438145,-551.0775,0.0002,2]
[362114986,1748003438160,-9525.35605954,0.0002,2]
[362115110,1748003439755,-54000.0,0.0002,2]
[362115118,1748003439819,-59264.75249924,0.0002,2]
[362115120,1748003439828,-639.84,0.0002,2]
[362115121,1748003439837,-182875.24054645,0.0002,2]
[362115122,1748003439846,-610.40634543,0.00020087,2]
[362115123,1748003439855,-151.0,0.00020166,2]
[362115124,1748003439864,-155.04,0.00020187,2]
[362115125,1748003439874,-151.0,0.00020236,2]
[362115126,1748003439883,-172.02,0.00020311,2]
[362115127,1748003439894,-329.64468528,0.000207,2]
[362115128,1748003439902,-400.0,0.00021,2]
[362115129,1748003439911,-5664.09304351,0.00021011,2]
[362115130,1748003439919,-8093.80985851,0.00021011,2]
[362115131,1748003439927,-342.0,0.0002155,2]
[362115132,1748003439936,-150.0,0.00021807,7]
[362115133,1748003439946,-2183.22,0.00021904,2]
[362115134,1748003439955,-391.14,0.0002199,2]
[362115135,1748003439965,-1653.95713176,0.0002199,2]
[362115136,1748003439974,-55299.0,0.00022,2]
[362115137,1748003439984,-166.32,0.00022115,2]
[362115138,1748003439993,-5664.09304351,0.00022122,2]
[362115139,1748003440002,-8093.80985851,0.00022122,2]
[362115141,1748003440012,-236.30207221,0.00022122,2]
[362115142,1748003440021,-2664.0,0.000222,2]
[362115144,1748003440031,-1864.11,0.00022486,2]
[362115146,1748003440040,-237.2,0.00022486,2]
[362115148,1748003440049,-620.02948143,0.000227,7]
[362115150,1748003440058,-620.02948126,0.000227,7]
[362115152,1748003440068,-620.02948126,0.000227,7]
[362115153,1748003440077,-620.02948126,0.000227,7]
[362115155,1748003440087,-5561.0,0.000227,3]
[362115157,1748003440096,-200.0,0.0002275,2]
[362115159,1748003440105,-157.68267412,0.0002275,2]
[362115161,1748003440115,-639.84,0.000228,7]
[362115163,1748003440124,-391.14,0.00022814,2]
[362115165,1748003440133,-1900.0,0.000229,8]
[362115167,1748003440143,-199.98,0.00023003,2]
[362115170,1748003440166,-199.98,0.0002306,2]
[362115172,1748003440176,-620.02948126,0.00023072,8]
[362115174,1748003440186,-199.98,0.00023118,2]
[362115176,1748003440197,-833.58,0.00023172,2]
[362115178,1748003440207,-5664.09304351,0.00023233,2]
[362115180,1748003440217,-8093.80985851,0.00023233,2]
[362115182,1748003440227,-5561.0,0.000233,5]
[362115184,1748003440238,-912.66,0.00023313,2]
[362115186,1748003440248,-391.14,0.00023639,2]
[362115188,1748003440258,-200.0,0.00023846,2]
[362115190,1748003440268,-1000.0,0.00023848,2]
[362115192,1748003440278,-620.02948126,0.00023866,10]
[362115194,1748003440288,-5855.71,0.00023916,2]
[362115196,1748003440298,-8732.12437978,0.00024,5]
[362115198,1748003440308,-198.99,0.00024069,2]
[362115200,1748003440319,-5000.01,0.00024069,2]
[362115202,1748003440329,-206.0,0.00024115,2]
[362115204,1748003440338,-500.0,0.0002425,2]
[362115206,1748003440348,-5664.09304351,0.00024344,2]
[362115208,1748003440359,-8093.80985851,0.00024344,2]
[362115210,1748003440369,-236.30207221,0.00024344,2]
[362115212,1748003440379,-391.14,0.00024463,2]
[362115214,1748003440389,-620.02948126,0.00024659,11]
[362115216,1748003440401,-200.0,0.0002475,2]
[362115218,1748003440411,-198.91733748,0.0002479,2]
[362115220,1748003440420,-44416.3651554,0.000248,3]
[362115222,1748003440430,-24193.50749855,0.000249,3]
[362115225,1748003440443,-2663.0,0.000249,3]
[362115227,1748003440456,-1015.39445651,0.000249,3]
[362115229,1748003440467,-2306.02363849,0.000249,3]
[362115231,1748003440478,-369.64771785,0.000249,3]
[362115262,1748003440767,-3000.0,0.000249,3]
[362115264,1748003440777,-401.7655333,0.000249,3]
[362115267,1748003440789,-2386.36463944,0.000249,3]
[362115269,1748003440801,-2432.26839026,0.000249,3]
[362115271,1748003440812,-3983.3402329,0.000249,3]
[362115273,1748003440821,-500.0,0.00024973,2]
[362115275,1748003440831,-150.99,0.0002498,2]
[362115277,1748003440840,-863.43,0.0002498,2]
[362115279,1748003440849,-2652.9127161,0.0002498,2]
[362115281,1748003440860,-7347.0772839,0.0002498,2]
[362115283,1748003440870,-1408.89,0.0002498,2]
[362115285,1748003440879,-7689.98271623,0.0002498,2]
[362115287,1748003440891,-2310.00728377,0.0002498,2]
[362115289,1748003440901,-1031.03,0.0002498,2]
[362115291,1748003440910,-150.99,0.0002498,2]
[362115293,1748003440920,-260.89,0.0002498,2]
[362115295,1748003440930,-264.77988549,0.0002498,2]
[362115298,1748003440953,-959.29011451,0.0002498,2]
[362115300,1748003440962,-3546.55,0.0002498,2]
[362115302,1748003440971,-1496.46,0.0002498,2]
[362115304,1748003440981,-40379.56,0.0002498,2]
[362115306,1748003440991,-9999.99,0.0002498,2]
[362115308,1748003441000,-2270.42,0.0002498,2]
[362115310,1748003441010,-184.44,0.0002498,7]
[362115312,1748003441019,-999.99,0.0002498,2]
[362115314,1748003441028,-406.59,0.0002498,2]
[362115316,1748003441038,-12180.14,0.0002498,2]
[362115318,1748003441047,-639.84,0.000252,7]
[362115320,1748003441057,-391.14,0.00025288,2]
[362115322,1748003441066,-151.0,0.00025416,2]
[362115324,1748003441076,-1199.20597015,0.00025416,2]
[362115326,1748003441086,-207.4,0.00025416,2]
[362115328,1748003441096,-668.65185757,0.00025416,2]
[362115330,1748003441104,-668.65185757,0.00025416,2]
[362115332,1748003441114,-620.02948126,0.00025452,13]
[362115334,1748003441123,-5664.09304351,0.00025456,2]
[362115336,1748003441133,-8093.80985851,0.00025456,2]
[362115338,1748003441144,-1000.0,0.00025482,2]
[362115340,1748003441159,-912.66,0.00025577,2]
[362115342,1748003441169,-693.3919763,0.00025964,2]
[362115344,1748003441178,-3777.49,0.00026074,2]
[362115346,1748003441188,-23900.0,0.0002614,2]
[362115348,1748003441198,-620.02948126,0.00026245,14]
[362115350,1748003441208,-2745.76,0.00026313,2]
[362115351,1748003441218,-826.06724196,0.00026512,2]
[362115353,1748003441227,-17321.63721597,0.00026522,2]
[362115355,1748003441238,-29181.88,0.00026523,2]
[362115357,1748003441247,-5664.09304351,0.00026567,2]
[362115360,1748003441258,-8093.80985851,0.00026567,2]
[362115361,1748003441267,-236.30207221,0.00026567,2]
[362115363,1748003441277,-500.0,0.000266,2]
[362115365,1748003441286,-610.40634541,0.00026655,10]
[362115367,1748003441296,-155.04,0.00026676,2]
[362115369,1748003441305,-156.587,0.00026785,2]
[362115371,1748003441315,-1295.03988982,0.00026785,2]
[362115373,1748003441324,-215.0738,0.00026785,2]
[362115375,1748003441333,-286.72989221,0.00026785,2]
[362115377,1748003441344,-1000.0,0.00026829,2]
[362115379,1748003441353,-2800.0,0.000269,9]
[362115381,1748003441363,-5272.80818259,0.00027,2]
[362115383,1748003441372,-166.35,0.00027033,2]
[362115385,1748003441381,-620.02948126,0.00027038,16]
[362115387,1748003441391,-557.41,0.00027057,7]
[362115389,1748003441401,-1000.0,0.00027148,2]
[362115391,1748003441410,-1077.7353,0.00027149,2]
[362115393,1748003441419,-639.84,0.000272,7]
[362115395,1748003441428,-16467.79787275,0.00027295,7]
[362115397,1748003441437,-1177.9108,0.00027297,2]
[362115399,1748003441447,-500.0,0.00027373,2]
[362115401,1748003441457,-504.06119418,0.00027373,2]
[362115402,1748003441466,-151.15,0.00027376,2]
[362115404,1748003441476,-300.0,0.00027386,10]
[362115406,1748003441485,-5803.76025586,0.00027386,2]
[362115408,1748003441494,-151.15,0.00027387,2]
[362115410,1748003441504,-151.15,0.00027387,2]
[362115412,1748003441513,-151.15,0.00027387,2]
[362115414,1748003441523,-27051.87156171,0.0002739,2]
[362115416,1748003441532,-3488.46236869,0.0002739,2]
[362115418,1748003441541,-1065.89594453,0.00027396,10]
[362115420,1748003441551,-151.0,0.00027397,7]
[362115422,1748003441560,-151.0,0.00027397,7]
[362115424,1748003441570,-151.0,0.00027397,7]
[362115426,1748003441580,-151.0,0.00027397,7]
[362115428,1748003441589,-491.8288,0.00027397,4]
[362115430,1748003441598,-470.226249,0.00027397,4]
[362115432,1748003441608,-420.0,0.00027397,4]
[362115434,1748003441617,-420.0,0.00027397,4]
[362115436,1748003441626,-420.0,0.00027397,4]
[362115438,1748003441635,-420.0,0.00027397,4]
[362115440,1748003441646,-473.82863857,0.00027397,4]
[362115442,1748003441655,-420.0,0.00027397,4]
[362115444,1748003441664,-420.0,0.00027397,4]
[362115446,1748003441674,-420.0,0.00027397,4]
[362115448,1748003441683,-420.0,0.00027397,4]
[362115450,1748003441693,-420.0,0.00027397,4]
[362115452,1748003441703,-420.0,0.00027397,4]
[362115454,1748003441712,-420.0,0.00027397,4]
[362115456,1748003441721,-420.0,0.00027397,4]
[362115458,1748003441732,-420.0,0.00027397,4]
[362115460,1748003441741,-420.0,0.00027397,4]
[362115462,1748003441750,-493.21,0.00027397,4]
[362115464,1748003441759,-420.0,0.00027397,4]
[362115465,1748003441769,-496.03,0.00027397,4]
[362115467,1748003441778,-420.0,0.00027397,4]
[362115469,1748003441788,-420.0,0.00027397,4]
[362115471,1748003441797,-420.0,0.00027397,4]
[362115473,1748003441806,-420.0,0.00027397,4]
[362115475,1748003441816,-420.0,0.00027397,4]
[362115477,1748003441825,-165.72844838,0.00027397,4]
[362115479,1748003441835,-420.0,0.00027397,4]
[362115481,1748003441844,-441.28,0.00027397,4]
[362115483,1748003441853,-420.0,0.00027397,4]
[362115485,1748003441862,-420.0,0.00027397,4]
[362115487,1748003441872,-420.0,0.00027397,4]
[362115489,1748003441881,-420.0,0.00027397,4]
[362115491,1748003441891,-420.0,0.00027397,4]
[362115493,1748003441902,-267.77183166,0.00027397,4]
[362115495,1748003441911,-420.0,0.00027397,4]
[362115497,1748003441922,-420.0,0.00027397,4]
[362115499,1748003441931,-420.0,0.00027397,4]
[362115501,1748003441941,-420.0,0.00027397,4]
[362115503,1748003441950,-443.22,0.00027397,4]
[362115505,1748003441959,-420.0,0.00027397,4]
[362115507,1748003441969,-420.0,0.00027397,4]
[362115509,1748003441978,-420.0,0.00027397,4]
[362115511,1748003441987,-420.0,0.00027397,4]
[362115513,1748003441996,-420.0,0.00027397,4]
[362115515,1748003442006,-420.0,0.00027397,4]
[362115517,1748003442016,-420.0,0.00027397,4]
[362115519,1748003442025,-420.0,0.00027397,4]
[362115521,1748003442035,-420.0,0.00027397,4]
[362115523,1748003442044,-420.0,0.00027397,4]
[362115525,1748003442053,-420.0,0.00027397,4]
[362115527,1748003442063,-420.0,0.00027397,4]
[362115529,1748003442072,-420.0,0.00027397,4]
[362115531,1748003442081,-233.67276501,0.00027397,4]
[362115533,1748003442090,-420.0,0.00027397,4]
[362115535,1748003442100,-420.0,0.00027397,4]
[362115537,1748003442109,-420.0,0.00027397,4]
[362115539,1748003442118,-420.0,0.00027397,4]
[362115541,1748003442127,-420.0,0.00027397,4]
[362115543,1748003442136,-420.0,0.00027397,4]
[362115545,1748003442147,-420.0,0.00027397,4]
[362115546,1748003442157,-420.0,0.00027397,4]
[362115548,1748003442171,-420.0,0.00027397,4]
[362115550,1748003442180,-420.0,0.00027397,4]
[362115552,1748003442189,-420.0,0.00027397,4]
[362115554,1748003442198,-183.45183663,0.00027397,4]
[362115556,1748003442209,-420.0,0.00027397,4]
[362115558,1748003442218,-420.0,0.00027397,4]
[362115560,1748003442227,-420.0,0.00027397,4]
[362115562,1748003442236,-420.0,0.00027397,4]
[362115564,1748003442246,-420.0,0.00027397,4]
[362115566,1748003442256,-420.0,0.00027397,4]
[362115568,1748003442265,-420.0,0.00027397,4]
[362115570,1748003442275,-420.0,0.00027397,4]
[362115572,1748003442285,-420.0,0.00027397,4]
[362115574,1748003442295,-420.0,0.00027397,4]
[362115576,1748003442305,-420.0,0.00027397,4]
[362115578,1748003442314,-420.0,0.00027397,4]
[362115580,1748003442324,-420.0,0.00027397,4]
[362115582,1748003442334,-429.57073709,0.00027397,4]
[362115584,1748003442343,-420.0,0.00027397,4]
[362115586,1748003442352,-420.0,0.00027397,4]
[362115588,1748003442362,-420.0,0.00027397,4]
[362115590,1748003442371,-420.0,0.00027397,4]
[362115592,1748003442380,-459.53325356,0.00027397,4]
[362115594,1748003442389,-420.0,0.00027397,4]
[362115596,1748003442401,-420.0,0.00027397,4]
[362115598,1748003442410,-420.0,0.00027397,4]
[362115600,1748003442419,-420.0,0.00027397,4]
[362115602,1748003442429,-420.0,0.00027397,4]
[362115604,1748003442438,-420.0,0.00027397,4]
[362115606,1748003442447,-250.0,0.00027397,4]
[362115608,1748003442457,-420.0,0.00027397,4]
[362115609,1748003442466,-420.0,0.00027397,4]
[362115611,1748003442476,-420.0,0.00027397,4]
[362115613,1748003442485,-420.0,0.00027397,4]
[362115615,1748003442494,-420.0,0.00027397,4]
[362115617,1748003442503,-222.33024261,0.00027397,4]
[362115619,1748003442512,-420.0,0.00027397,4]
[362115621,1748003442521,-420.0,0.00027397,4]
[362115623,1748003442531,-420.0,0.00027397,4]
[362115625,1748003442540,-420.0,0.00027397,4]
[362115628,1748003442550,-420.0,0.00027397,4]
[362115630,1748003442558,-420.0,0.00027397,4]
[362115632,1748003442567,-420.0,0.00027397,4]
[362115633,1748003442577,-420.0,0.00027397,4]
[362115635,1748003442586,-420.0,0.00027397,4]
[362115636,1748003442595,-420.0,0.00027397,4]
[362115637,1748003442604,-420.0,0.00027397,4]
[362115638,1748003442613,-420.0,0.00027397,4]
[362115640,1748003442622,-420.0,0.00027397,4]
[362115641,1748003442631,-420.0,0.00027397,4]
[362115643,1748003442640,-420.0,0.00027397,4]
[362115646,1748003442651,-354.18509632,0.00027397,4]
[362115648,1748003442660,-420.0,0.00027397,4]
[362115649,1748003442669,-285.59815242,0.00027397,4]
[362115651,1748003442678,-420.0,0.00027397,4]